bitfinex/quotes_SOLUSD_20250929
["timestamp","ask_amount","ask_price","bid_price","bid_amount"]
[1759155649290,0.1,211.35,211.29,39.48]
[1759155649615,0.8,211.35,211.29,39.48]
[1759155650391,0.1,211.35,211.29,39.48]
[1759155650597,0.1,211.35,211.3,14.31559401]
[1759155651119,0.1,211.35,211.32,13.59559401]
[1759155651621,0.1,211.35,211.33,0.68]
[1759155651797,0.1,211.35,211.32,13.59559401]
[1759155651798,0.1,211.35,211.34,39.46]
[1759155652202,0.1,211.35,211.34,40.14]
[1759155652818,0.1,211.35,211.34,39.46]
[1759155653120,0.1,211.35,211.34,53.73559401]
[1759155654419,0.1,211.35,211.34,53.05559401]
[1759155654724,0.78,211.35,211.31,13.59559401]
[1759155655026,0.78,211.35,211.32,39.44]
[1759155655724,0.68,211.34,211.32,39.44]
[1759155655960,0.68,211.33,211.32,39.44]
[1759155656097,0.1,211.35,211.29,39.44]
[1759155657401,0.1,211.35,211.3,14.27559401]
[1759155658135,0.1,211.35,211.29,39.44]
[1759155658136,0.68,211.34,211.29,39.44]
[1759155658500,0.68,211.33,211.29,39.44]
[1759155658728,8.22078819,211.35,211.29,39.44]
[1759155658909,8.90078819,211.35,211.29,39.44]
[1759155659619,0.1,211.35,211.29,39.44]
[1759155659823,0.68,211.34,211.29,39.44]
[1759155660433,0.1,211.35,211.14,54.16]
[1759155660434,0.68,211.33,211.25,39.44]
[1759155660728,34.22078819,211.35,211.26,13.59559401]
[1759155660729,26.1,211.35,211.26,13.59559401]
[1759155660940,0.1,211.35,211.28,13.59559401]
[1759155661116,0.1,211.35,211.29,39.44]
[1759155661424,0.1,211.35,211.26,39.44]
[1759155661425,8.12078819,211.33,211.26,39.44]
[1759155661623,0.68,211.32,211.25,39.44]
[1759155663331,8.80078819,211.31,211.25,39.44]
[1759155663720,0.78,211.35,211.25,40.12]
[1759155664055,8.90078819,211.35,211.25,40.12]
[1759155664208,26.78,211.35,211.25,40.12]
[1759155664541,8.12078819,211.33,211.25,39.44]
[1759155664723,0.68,211.32,211.25,39.44]
[1759155665438,8.12078819,211.33,211.25,40.12]
[1759155665627,26.0,211.32,211.26,0.68]
[1759155665833,8.90078819,211.35,211.26,14.27559401]
[1759155666141,0.1,211.35,211.27,14.27559401]
[1759155666337,0.68,211.34,211.26,39.42]
[1759155666631,0.68,211.34,211.26,40.1]
[1759155666848,26.0,211.32,211.26,39.42]
[1759155667010,0.68,211.31,211.26,39.42]
[1759155667211,0.68,211.3,211.26,39.42]
[1759155667416,34.12078819,211.32,211.26,40.1]
[1759155667717,0.68,211.34,211.26,40.1]
[1759155667924,0.68,211.34,211.26,39.42]
[1759155668226,0.1,211.35,211.27,0.68]
[1759155668739,0.1,211.35,211.28,13.59559401]
[1759155668915,0.1,211.35,211.29,0.68]
[1759155669444,0.1,211.35,211.26,40.1]
[1759155669445,0.78,211.35,211.26,40.1]
[1759155669833,0.1,211.35,211.28,13.59559401]
[1759155670232,0.1,211.35,211.3,13.59559401]
[1759155670429,0.1,211.35,211.31,40.1]
[1759155670930,0.1,211.35,211.32,0.68]
[1759155671136,0.1,211.35,211.33,0.68]
[1759155671335,0.1,211.35,211.34,14.27559401]
[1759155672162,34.16,211.53,211.34,14.27559401]
[1759155672163,8.12078819,211.53,211.39,13.59559401]
[1759155672342,26.0,211.5,211.41,13.59559401]
[1759155672527,8.80078819,211.53,211.42,0.68]
[1759155673036,0.68,211.53,211.43,13.59559401]
[1759155673239,0.68,211.53,211.44,0.68]
[1759155673429,0.1,211.54,211.45,39.42]
[1759155673748,0.1,211.54,211.46,0.68]
[1759155674129,26.1,211.54,211.46,0.68]
[1759155674627,8.22078819,211.54,211.46,0.68]
[1759155674827,8.22078819,211.54,211.46,40.1]
[1759155675242,0.1,211.54,211.46,40.1]
[1759155675544,0.1,211.54,211.46,39.42]
[1759155675745,0.67,211.53,211.46,39.42]
[1759155676749,8.12078819,211.51,211.37,5.70359384]
[1759155676945,8.12078819,211.47,211.37,31.08]
[1759155677138,0.67,211.46,211.37,31.08]
[1759155677645,0.67,211.45,211.38,39.4]
[1759155678050,8.12078819,211.46,211.38,40.08]
[1759155678432,8.79078819,211.46,211.38,40.08]
[1759155678628,8.79078819,211.46,211.38,39.4]
[1759155679134,0.67,211.45,211.38,39.4]
[1759155679341,26.0,211.38,211.28,0.68]
[1759155679542,8.79078819,211.37,211.28,0.68]
[1759155679745,8.12078819,211.37,211.28,0.68]
[1759155679929,8.12078819,211.39,211.29,13.59559401]
[1759155680253,4.1835766,211.44,211.31,13.59559401]
[1759155680254,4.8535766,211.44,211.31,13.59559401]
[1759155680427,8.12078819,211.47,211.33,13.59559401]
[1759155680630,8.12078819,211.47,211.35,13.59559401]
[1759155680931,0.67,211.48,211.34,0.68]
[1759155680932,0.67,211.48,211.36,0.68]
[1759155681131,12.10208949,211.5,211.36,0.68]
[1759155681349,3.9813013,211.5,211.37,13.59559401]
[1759155681650,0.69,211.52,211.39,13.59559401]
[1759155682050,0.69,211.52,211.41,13.59559401]
[1759155682567,0.69,211.52,211.42,0.71]
[1759155683258,0.69,211.52,211.34,26.0]
[1759155683259,8.12078819,211.5,211.43,36.11]
[1759155683843,26.1,211.54,211.43,36.11]
[1759155683844,0.1,211.54,211.44,0.71]
[1759155684030,8.12078819,211.52,211.44,0.71]
[1759155684228,8.12078819,211.49,211.43,35.4]
[1759155684452,0.69,211.48,211.43,35.4]
[1759155684651,8.12078819,211.47,211.43,35.4]
[1759155684830,8.12078819,211.44,211.43,35.4]
[1759155685032,8.81078819,211.44,211.38,39.4]
[1759155685349,8.12078819,211.44,211.38,39.4]
[1759155685552,8.12078819,211.46,211.39,0.71]
[1759155686157,8.12078819,211.43,211.38,39.4]
[1759155686453,8.12078819,211.43,211.36,0.71]
[1759155686454,0.69,211.43,211.36,0.71]
[1759155686637,8.12078819,211.42,211.36,40.11]
[1759155686841,8.12078819,211.42,211.37,0.71]
[1759155687039,8.12078819,211.42,211.38,0.71]
[1759155687262,8.12078819,211.42,211.36,39.4]
[1759155688481,0.69,211.45,211.37,0.71]
[1759155688641,8.12078819,211.43,211.37,0.71]
[1759155689230,4.72992148,211.42,211.37,0.71]
[1759155689870,8.12078819,211.4,211.36,50.0]
[1759155690093,16.55472518,211.42,211.36,50.0]
[1759155690094,8.12078819,211.37,211.36,50.0]
[1759155690388,8.81078819,211.37,211.36,50.0]
[1759155690789,8.81078819,211.37,211.36,19.62113632]
[1759155691190,8.12078819,211.37,211.36,19.62113632]
[1759155691403,8.81078819,211.37,211.36,19.62113632]
[1759155692092,8.81078819,211.37,211.32,39.4]
[1759155692306,8.12078819,211.33,211.32,39.4]
[1759155693280,4.73215975,211.32,211.27,0.71]
[1759155693487,16.56255914,211.32,211.29,39.4]
[1759155693687,4.73215975,211.32,211.29,39.4]
[1759155694585,5.42215975,211.32,211.29,39.4]
[1759155694788,8.12078819,211.3,211.29,39.4]
[1759155694974,8.81078819,211.3,211.29,39.4]
[1759155695170,8.12078819,211.3,211.29,39.4]
[1759155695395,25.37491501,211.3,211.21,0.71]
[1759155695595,8.12078819,211.25,211.17,0.71]
[1759155695797,8.12078819,211.22,211.18,39.4]
[1759155695975,8.12078819,211.24,211.19,0.71]
[1759155696179,8.12078819,211.24,211.2,0.71]
[1759155696489,8.81078819,211.24,211.17,0.71]
[1759155696693,8.12078819,211.24,211.17,0.71]
[1759155697402,4.73417601,211.23,211.17,0.71]
[1759155697612,8.12078819,211.21,211.14,0.71]
[1759155697775,8.12078819,211.21,211.15,39.4]
[1759155698099,8.12078819,211.22,211.16,0.71]
[1759155698298,8.12078819,211.22,211.15,39.4]
[1759155698602,8.12078819,211.19,211.13,0.71]
[1759155698977,8.12078819,211.19,211.14,39.4]
[1759155699190,0.69,211.18,211.1,0.71]
[1759155699394,4.73552114,211.17,211.13,39.4]
[1759155699903,11.83691378,211.21,211.14,0.71]
[1759155700106,8.12078819,211.19,211.14,0.71]
[1759155700406,8.12078819,211.19,211.15,0.71]
[1759155700591,8.12078819,211.19,211.13,39.4]
[1759155700794,8.12078819,211.19,211.13,40.11]
[1759155701507,4.7352969,211.18,211.13,40.11]
[1759155701705,17.26353915,211.18,211.13,39.4]
[1759155701886,4.7352969,211.18,211.13,40.11]
[1759155702086,12.85608509,211.18,211.14,0.71]
[1759155702408,13.54608509,211.18,211.11,0.71]
[1759155702606,0.69,211.17,211.12,39.42]
[1759155702784,24.69432734,211.18,211.07,0.71]
[1759155702785,8.12078819,211.14,211.07,0.71]
[1759155702985,8.12078819,211.14,211.08,39.42]
[1759155703796,12.85713216,211.14,211.08,40.13]
[1759155704090,4.73576164,211.16,211.08,44.86753731]
[1759155704708,4.73576164,211.16,211.09,0.71]
[1759155704910,8.12078819,211.17,211.09,0.71]
[1759155705088,4.73521097,211.19,211.1,13.59559401]
[1759155705288,4.73521097,211.19,211.11,0.71]
[1759155705801,16.57289267,211.19,211.11,0.71]
[1759155706015,17.26289267,211.19,211.11,0.71]
[1759155706508,5.45250932,211.18,211.12,39.42]
[1759155706889,0.69,211.17,211.12,39.42]
[1759155707296,0.69,211.16,211.12,39.42]
[1759155707595,5.45250932,211.18,211.12,39.42]
[1759155707596,5.45250932,211.17,211.12,39.42]
[1759155707891,17.26510891,211.16,211.08,0.71]
[1759155708089,17.26510891,211.16,211.09,39.42]
[1759155709111,4.7357454,211.16,211.09,39.42]
[1759155709981,16.57510891,211.16,211.09,39.42]
[1759155710190,22.02761823,211.16,211.1,0.71]
[1759155711127,22.72761823,211.16,211.09,39.42]
[1759155711891,5.45250932,211.13,211.1,39.42]
[1759155712400,5.45250932,211.13,211.11,0.72]
[1759155712594,22.02761823,211.16,211.1,39.42]
[1759155713197,4.7357454,211.16,211.11,0.72]
[1759155713416,4.73555051,211.17,211.12,0.72]
[1759155713802,16.57435337,211.17,211.12,0.72]
[1759155715010,17.27435337,211.17,211.12,0.72]
[1759155715316,17.27435337,211.17,211.1,39.42]
[1759155715912,16.57667897,211.14,211.1,39.42]
[1759155716112,0.7,211.13,211.1,39.42]
[1759155716711,5.45250932,211.12,211.1,39.42]
[1759155716913,6.15250932,211.12,211.1,39.42]
[1759155717112,4.73593074,211.16,211.1,39.42]
[1759155717321,10.18844006,211.16,211.1,40.14]
[1759155717910,22.02780357,211.16,211.1,40.14]
[1759155718814,22.02780357,211.16,211.1,39.42]
[1759155719221,10.18844006,211.16,211.1,40.14]
[1759155719518,22.02780357,211.16,211.1,40.14]
[1759155719726,22.02780357,211.16,211.1,39.42]
[1759155719923,0.7,211.15,211.07,0.72]
[1759155720122,5.45250932,211.13,211.08,39.42]
[1759155720321,0.7,211.12,211.08,39.42]
[1759155721120,26.0,211.2,211.08,39.42]
[1759155721121,5.43600611,211.15,211.08,39.42]
[1759155721419,48.02843965,211.15,211.08,39.42]
[1759155721627,5.45250932,211.12,211.08,39.42]
[1759155721812,0.7,211.11,211.01,34.1]
[1759155722000,4.73754026,211.08,211.02,39.42]
[1759155722203,0.7,211.15,211.04,13.59559401]
[1759155722407,5.45250932,211.14,211.05,0.72]
[1759155723556,26.7,211.15,211.07,4.73776472]
[1759155723557,26.0,211.15,211.07,4.73776472]
[1759155723718,26.0,211.15,211.05,14.31559401]
[1759155723719,0.7,211.15,211.08,0.72]
[1759155723919,10.18804889,211.17,211.1,13.59559401]
[1759155724104,10.18804889,211.17,211.11,0.72]
[1759155724506,36.18755729,211.2,211.11,0.72]
[1759155724823,6.15250932,211.24,211.12,13.59559401]
[1759155725008,6.15250932,211.24,211.14,13.59559401]
[1759155725009,0.7,211.24,211.14,13.59559401]
[1759155725322,6.15250932,211.24,211.16,13.59559401]
[1759155725622,5.45250932,211.27,211.19,13.59559401]
[1759155725804,10.18581302,211.27,211.2,0.72]
[1759155726004,4.7333037,211.27,211.2,0.72]
[1759155726212,30.7333037,211.27,211.2,0.72]
[1759155726424,42.56650292,211.27,211.2,0.72]
[1759155726923,22.71901224,211.27,211.18,13.59559401]
[1759155727226,0.7,211.26,211.18,13.59559401]
[1759155727612,5.43370064,211.26,211.19,5.45507268]
[1759155728428,4.73283165,211.29,211.21,13.59559401]
[1759155728727,6.15250932,211.33,211.23,13.59559401]
[1759155729027,36.88445378,211.33,211.24,0.72]
[1759155729402,48.71429336,211.33,211.22,39.4]
[1759155729604,48.71429336,211.33,211.15,5.45250932]
[1759155729605,5.45250932,211.27,211.18,0.72]
[1759155729804,0.7,211.26,211.19,39.4]
[1759155730728,4.73372781,211.25,211.19,39.4]
[1759155730909,0.7,211.26,211.19,39.4]
[1759155731105,0.7,211.26,211.18,5.45527044]
[1759155731312,5.45250932,211.27,211.2,39.4]
[1759155731511,0.7,211.26,211.2,39.4]
[1759155731927,5.45250932,211.24,211.2,39.4]
[1759155732131,0.7,211.23,211.2,39.4]
[1759155732432,0.7,211.22,211.14,0.72]
[1759155732736,5.45250932,211.21,211.15,39.38]
[1759155732905,17.27196969,211.2,211.15,39.38]
[1759155733238,0.7,211.19,211.15,39.38]
[1759155733408,6.15250932,211.18,211.15,39.38]
[1759155733731,5.45250932,211.18,211.15,39.38]
[1759155733940,5.45250932,211.18,211.15,40.03]
[1759155734229,4.73484848,211.2,211.15,39.38]
[1759155734415,4.73484848,211.2,211.16,0.65]
[1759155734618,5.45250932,211.21,211.15,39.38]
[1759155734813,5.45250932,211.21,211.17,0.65]
[1759155735012,5.45250932,211.21,211.15,39.38]
[1759155735219,10.18723303,211.21,211.15,39.38]
[1759155735717,22.02379379,211.21,211.15,39.38]
[1759155736431,5.45250932,211.21,211.16,0.65]
[1759155736630,10.1871373,211.21,211.16,0.65]
[1759155737006,10.1871373,211.21,211.15,39.38]
[1759155737424,22.02369806,211.21,211.15,39.38]
[1759155737631,0.71,211.2,211.15,39.38]
[1759155738013,10.1871373,211.21,211.15,39.38]
[1759155738221,10.1871373,211.21,211.16,0.65]
[1759155740432,10.1871373,211.21,211.15,39.38]
[1759155740433,0.71,211.2,211.15,39.38]
[1759155740613,5.45250932,211.18,211.15,39.38]
[1759155740813,0.71,211.17,211.15,39.38]
[1759155741007,5.45250932,211.18,211.15,39.38]
[1759155741234,6.15250932,211.18,211.15,39.38]
[1759155741420,5.45250932,211.18,211.15,39.38]
[1759155742044,5.45250932,211.2,211.15,40.07]
[1759155742217,5.45250932,211.2,211.15,39.38]
[1759155742534,5.45250932,211.17,211.15,39.38]
[1759155743738,5.43509535,211.19,211.15,39.38]
[1759155743739,4.73509535,211.19,211.15,39.38]
[1759155744233,0.7,211.18,211.15,39.38]
[1759155744632,4.73552114,211.17,211.15,39.38]
[1759155745436,4.73552114,211.17,211.12,0.69]
[1759155745437,0.7,211.16,211.09,0.69]
[1759155745636,0.7,211.16,211.06,0.69]
[1759155745941,0.7,211.16,211.07,39.36]
[1759155746111,0.7,211.15,211.04,39.59559401]
[1759155746319,6.15250932,211.14,211.05,0.69]
[1759155746542,16.57746412,211.13,211.06,39.36]
[1759155746726,26.0,211.1,211.07,39.36]
[1759155747043,0.7,211.09,211.07,39.36]
[1759155747256,32.15250932,211.1,211.07,39.36]
[1759155747429,26.0,211.1,211.07,39.36]
[1759155748517,4.73731583,211.09,211.07,39.36]
[1759155749019,0.7,211.08,211.0,0.69]
[1759155749224,0.7,211.08,211.01,39.36]
[1759155749645,6.15250932,211.07,210.99,0.2]
[1759155749942,31.45250932,211.04,210.99,25.52]
[1759155750145,0.7,211.03,210.99,25.52]
[1759155750734,4.7388873,211.02,210.99,25.52]
[1759155751564,17.28610557,211.02,210.99,25.52]
[1759155752238,16.58610557,211.02,210.99,25.52]
[1759155752451,16.58610557,211.02,210.99,0.2]
[1759155752452,0.7,211.01,210.99,0.2]
[1759155752836,4.73908433,211.02,210.99,0.2]
[1759155753020,0.7,211.01,210.99,0.2]
[1759155753956,16.5863026,211.02,210.99,0.2]
[1759155754124,5.43908433,211.02,210.99,0.2]
[1759155754559,5.45250932,211.03,210.99,0.2]
[1759155754749,10.19049851,211.06,211.0,0.69]
[1759155754923,4.73798919,211.06,211.0,0.69]
[1759155755532,30.73798919,211.06,211.0,5.42930411]
[1759155756037,30.73798919,211.06,211.0,0.69]
[1759155756240,0.7,211.05,210.99,0.2]
[1759155756753,16.58453373,211.04,210.99,0.2]
[1759155756966,0.7,211.03,210.99,0.2]
[1759155757266,4.73843821,211.04,210.99,0.89]
[1759155757447,0.7,211.09,211.0,0.69]
[1759155757749,4.73754026,211.08,211.0,0.69]
[1759155757967,59.06733814,211.15,211.0,0.69]
[1759155757968,0.7,211.14,211.01,13.59559401]
[1759155758269,0.7,211.13,211.03,13.59559401]
[1759155758463,16.57687092,211.14,211.04,40.05]
[1759155758762,10.18936635,211.12,211.05,0.69]
[1759155758926,5.45250932,211.13,211.05,5.42820105]
[1759155759122,5.45250932,211.13,211.06,0.69]
[1759155759541,4.73596968,211.15,211.06,0.69]
[1759155759740,36.188479,211.15,211.06,0.69]
[1759155759934,48.02840322,211.15,211.06,0.69]
[1759155760136,42.5758939,211.15,211.06,0.69]
[1759155760540,30.73596968,211.15,211.06,0.69]
[1759155760946,4.73596968,211.15,211.08,13.59559401]
[1759155761151,4.73596968,211.15,211.09,0.69]
[1759155761349,0.7,211.19,211.1,39.36]
[1759155761350,0.7,211.16,211.1,39.36]
[1759155761535,26.7,211.16,211.1,39.36]
[1759155762154,0.7,211.15,211.1,39.36]
[1759155762338,31.45250932,211.16,211.1,39.36]
[1759155762339,0.7,211.14,211.1,39.36]
[1759155762545,26.0,211.11,211.05,39.34]
[1759155762741,0.7,211.1,211.04,39.34]
[1759155763051,31.45250932,211.11,210.99,0.2]
[1759155763052,17.28060542,211.09,210.99,0.2]
[1759155763249,17.28060542,211.09,211.0,39.34]
[1759155763559,5.45250932,211.07,211.0,39.34]
[1759155764147,5.45250932,211.04,211.0,39.34]
[1759155765034,26.0,211.06,211.0,39.34]
[1759155765241,26.0,211.06,211.01,0.69]
[1759155765436,17.29603135,211.09,211.02,0.69]
[1759155766062,16.58139093,211.08,211.0,39.34]
[1759155766369,0.7,211.07,211.0,39.34]
[1759155766744,26.0,211.05,211.0,39.34]
[1759155767067,26.0,211.05,211.0,40.03]
[1759155767370,30.73822368,211.05,211.0,40.03]
[1759155768346,30.73822368,211.05,211.0,39.34]
[1759155768347,24.7283565,211.05,211.0,39.34]
[1759155768544,25.4283565,211.05,211.0,39.34]
[1759155769156,17.28375791,211.05,211.0,39.34]
[1759155769970,4.73822368,211.05,211.0,40.03]
[1759155770274,0.7,211.04,211.0,39.34]
[1759155770446,0.7,211.03,210.99,0.2]
[1759155770770,34.14459859,211.01,210.99,0.2]
[1759155770976,4.73933649,211.0,210.99,0.2]
[1759155771865,5.43933649,211.0,210.99,0.2]
[1759155772486,5.43933649,211.0,210.99,1e-08]
[1759155772647,19.0349305,211.0,210.99,1e-08]
[1759155773063,5.43933649,211.0,210.99,1e-08]
[1759155773267,13.58393508,211.0,210.99,1e-08]
[1759155773463,38.88393508,211.0,210.99,1e-08]
[1759155773659,12.88393508,211.0,210.99,1e-08]
[1759155773863,13.58393508,211.0,210.99,1e-08]
[1759155774172,39.58393508,211.0,210.99,1e-08]
[1759155774573,53.17952909,211.0,210.99,1e-08]
[1759155775369,26.0,210.97,210.95,1e-08]
[1759155775575,8.14459859,210.96,210.95,1e-08]
[1759155775751,8.84459859,210.96,210.95,1e-08]
[1759155775951,8.14459859,210.96,210.95,1e-08]
[1759155776167,8.84459859,210.96,210.95,1e-08]
[1759155777269,13.5848337,210.96,210.95,1e-08]
[1759155778069,12.8848337,210.96,210.95,1e-08]
[1759155779974,12.8848337,210.96,210.93,1e-08]
[1759155779975,39.59559401,210.94,210.93,1e-08]
[1759155780373,39.59559401,210.94,210.88,0.2]
[1759155780374,26.0,210.9,210.88,1e-08]
[1759155780562,13.59559401,210.93,210.88,1e-08]
[1759155780563,21.7401926,210.89,210.88,1e-08]
[1759155780765,22.4401926,210.89,210.88,1e-08]
[1759155780959,8.84459859,210.89,210.88,1e-08]
[1759155781470,13.58640711,210.89,210.88,1e-08]
[1759155781668,4.74180852,210.89,210.88,1e-08]
[1759155781867,30.74180852,210.89,210.88,1e-08]
[1759155782182,30.74180852,210.89,210.88,0.72000001]
[1759155782359,30.74180852,210.89,210.88,1e-08]
[1759155782883,23.70117557,210.96,210.88,1e-08]
[1759155782884,13.59559401,210.98,210.88,0.72000001]
[1759155783178,0.7,211.01,210.88,0.72000001]
[1759155783476,3.71238691,211.06,210.88,0.72000001]
[1759155783477,8.14459859,211.0,210.88,5.4620262]
[1759155783682,8.14459859,211.0,210.89,0.72]
[1759155783881,0.7,211.03,210.89,0.72]
[1759155784069,34.14459859,211.0,210.89,0.72]
[1759155784264,8.14459859,211.0,210.89,0.72]
[1759155785275,8.14459859,211.0,210.92,26.0]
[1759155785483,8.84459859,211.03,210.93,0.72]
[1759155786184,8.84459859,211.03,210.89,39.32]
[1759155786185,8.14459859,211.0,210.9,0.72]
[1759155787069,0.7,210.99,210.9,0.72]
[1759155787454,4.73978576,210.98,210.91,4.74135887]
[1759155787678,30.73978576,210.98,210.92,0.72]
[1759155787889,30.73952114,211.0,210.92,0.72]
[1759155788586,12.54609388,211.05,210.92,0.72]
[1759155788768,38.54609388,211.05,210.93,13.59559401]
[1759155788971,38.54609388,211.05,210.94,0.72]
[1759155789159,13.59559401,211.09,210.94,0.72]
[1759155789160,8.84459859,211.09,210.95,13.59559401]
[1759155789364,25.42522404,211.09,210.98,4.73978576]
[1759155789585,51.42522404,211.09,210.99,0.72]
[1759155790064,25.42522404,211.09,210.99,0.72]
[1759155790482,25.42522404,211.09,210.96,0.72]
[1759155790683,34.14459859,211.06,210.96,39.3]
[1759155790991,34.14459859,211.03,210.93,39.3]
[1759155791158,34.14459859,211.03,210.93,40.02]
[1759155791159,0.7,211.02,210.93,40.02]
[1759155791488,4.73911189,211.01,210.94,4.74068455]
[1759155791686,4.73911189,211.01,210.94,5.46068455]
[1759155791897,0.7,211.02,210.95,0.72]
[1759155791898,4.73889838,211.02,210.95,0.72]
[1759155792385,26.0,211.03,210.95,0.72]
[1759155792581,4.73815762,211.06,210.96,13.59559401]
[1759155792768,4.73815762,211.06,210.97,0.72]
[1759155793788,17.28313061,211.06,210.97,0.72]
[1759155794282,17.28313061,211.06,210.98,0.72]
[1759155794283,30.73815762,211.06,210.98,0.72]
[1759155794487,12.88239952,211.07,210.98,0.72]
[1759155794683,25.42681132,211.07,210.98,0.72]
[1759155794861,17.28221273,211.07,210.98,0.72]
[1759155795064,16.58221273,211.07,210.98,0.72]
[1759155795375,0.7,211.06,210.98,0.72]
[1759155795571,4.73821369,211.05,210.98,40.0]
[1759155796091,4.73821369,211.05,210.98,44.01978308]
[1759155796263,0.7,211.09,210.99,0.72]
[1759155796464,4.73754026,211.08,210.99,0.72]
[1759155796866,26.0,211.09,210.99,0.72]
[1759155797066,26.0,211.12,211.0,13.59559401]
[1759155797278,4.73619399,211.14,211.01,0.72]
[1759155797465,0.7,211.13,211.01,0.72]
[1759155797662,4.73686703,211.11,210.99,13.59559401]
[1759155797892,26.7,211.1,211.0,40.0]
[1759155798303,26.7,211.1,211.01,39.28]
[1759155799075,4.73731583,211.09,211.01,44.01893158]
[1759155799307,16.58060542,211.09,211.01,39.28]
[1759155799489,0.7,211.08,211.02,39.28]
[1759155799790,0.7,211.07,211.01,39.28]
[1759155800190,24.72520401,211.09,210.97,0.72]
[1759155800402,26.7,211.06,210.94,0.72]
[1759155800595,26.7,211.06,210.95,52.87559401]
[1759155800896,0.7,211.05,210.95,39.26]
[1759155801100,0.67,211.04,210.95,39.26]
[1759155801397,0.67,211.03,210.95,39.26]
[1759155801701,0.67,211.02,210.95,39.26]
[1759155801903,26.0,211.01,210.95,39.26]
[1759155802071,8.14459859,210.99,210.93,39.26]
[1759155802420,0.67,211.0,210.88,1e-08]
[1759155802421,8.14459859,210.96,210.88,1e-08]
[1759155802722,8.14459859,210.96,210.88,39.26000001]
[1759155803025,8.81459859,210.96,210.88,44.00200608]
[1759155803219,8.81459859,210.96,210.88,39.26000001]
[1759155803426,4.74045982,210.95,210.88,39.26000001]
[1759155804123,8.81459859,210.96,210.88,44.00201439]
[1759155804327,4.73956111,210.99,210.89,40.28559401]
[1759155804498,4.73956111,210.99,210.9,0.69]
[1759155804903,4.73919781,211.01,210.9,0.69]
[1759155805320,4.73866274,211.03,210.92,42.59396926]
[1759155805524,4.73866274,211.03,210.93,0.69]
[1759155805729,4.73866274,211.03,210.94,39.26]
[1759155806097,0.67,211.02,210.94,39.26]
[1759155806709,0.67,211.01,210.94,39.26]
[1759155807025,0.67,211.01,210.95,39.26]
[1759155807394,5.40933324,211.01,210.95,39.26]
[1759155807614,4.73933324,211.01,210.95,39.26]
[1759155807821,4.73933324,211.01,210.95,44.69045688]
[1759155808393,4.73933324,211.01,210.95,39.95]
[1759155808655,16.58711296,211.01,210.89,39.59559401]
[1759155808795,16.58711296,211.01,210.88,1e-08]
[1759155808796,8.14459859,210.93,210.88,1e-08]
[1759155809299,8.14459859,210.93,210.88,5.43198902]
[1759155809501,8.14459859,210.93,210.88,0.69000001]
[1759155809502,12.88557571,210.93,210.88,0.69000001]
[1759155810130,0.67,210.92,210.88,1e-08]
[1759155810712,24.73784897,210.93,210.88,1e-08]
[1759155810940,12.88557571,210.93,210.88,1e-08]
[1759155811122,8.14459859,210.93,210.88,1e-08]
[1759155811328,20.66559806,210.96,210.88,0.69000001]
[1759155811714,16.59160938,210.95,210.88,1e-08]
[1759155811920,8.14459859,210.93,210.88,1e-08]
[1759155812315,0.67,210.92,210.88,1e-08]
[1759155812719,0.67,210.91,210.88,1e-08]